fUSD/lending_fUSD_20240105
["ID","MTS","AMOUNT","RATE_DAILY","PERIOD"]
[310312625,1704471118998,-500.0,0.00031232,2]
[310312626,1704471119008,-500.0,0.00031232,2]
[310312627,1704471119018,-1102.46,0.00031232,2]
[310312628,1704471119028,-2232.74,0.00031232,2]
[310312629,1704471119039,-500.0,0.00031232,2]
[310312630,1704471119048,-500.0,0.00031232,2]
[310312631,1704471119061,-924.65,0.00031232,2]
[310312632,1704471119071,-500.0,0.00031232,2]
[310312633,1704471119080,-815.75,0.00031232,2]
[310312634,1704471119090,-500.0,0.00031232,2]
[310312635,1704471119100,-500.0,0.00031232,2]
[310312636,1704471119109,-500.0,0.00031232,2]
[310312637,1704471119118,-534.43,0.00031232,2]
[310312638,1704471119127,-1341.18,0.00031232,2]
[310312639,1704471119137,-314.53,0.00031362,2]
[310312640,1704471119146,-9441.51611463,0.0003143,4]
[310312641,1704471119156,-20000.0,0.000315,2]
[310312642,1704471119166,-500.0,0.000315,2]
[310312643,1704471119175,-500.0,0.00031506,2]
[310312644,1704471119184,-785.36,0.00031506,2]
[310312645,1704471119195,-500.0,0.00031506,2]
[310312646,1704471119206,-500.0,0.00031506,2]
[310312647,1704471119216,-500.0,0.00031506,2]
[310312648,1704471119225,-500.0,0.00031506,2]
[310312649,1704471119235,-500.0,0.00031506,2]
[310312650,1704471119245,-500.0,0.00031506,2]
[310312651,1704471119254,-150.0,0.00031506,2]
[310312652,1704471119264,-500.0,0.00031506,2]
[310312653,1704471119273,-1435.45,0.00031506,2]
[310312654,1704471119282,-500.0,0.00031506,2]
[310312655,1704471119291,-500.0,0.00031506,2]
[310312656,1704471119300,-598.28901485,0.00031506,2]
[310312657,1704471119309,-500.0,0.00031506,2]
[310312658,1704471119319,-500.0,0.00031506,2]
[310312659,1704471119328,-498.21096701,0.00031506,2]
[310312660,1704471119337,-500.0,0.00031506,2]
[310312661,1704471119347,-500.0,0.00031506,2]
[310312662,1704471119356,-523.01964934,0.00031506,2]
[310312663,1704471119365,-500.0,0.00031506,2]
[310312664,1704471119374,-500.0,0.00031506,2]
[310312665,1704471119383,-500.0,0.00031506,2]
[310312666,1704471119392,-500.0,0.00031506,2]
[310312667,1704471119402,-500.0,0.00031506,2]
[310312668,1704471119411,-764.34,0.00031506,2]
[310312669,1704471119420,-600.38268632,0.00031506,2]
[310312670,1704471119429,-749.93,0.00031506,2]
[310312671,1704471119438,-607.53960441,0.00031506,2]
[310312672,1704471119447,-500.0,0.00031506,2]
[310312673,1704471119457,-512.27,0.00031506,2]
[310312674,1704471119466,-500.0,0.00031506,2]
[310312675,1704471119475,-790.83,0.00031506,2]
[310312676,1704471119484,-500.0,0.00031506,2]
[310312677,1704471119494,-500.0,0.00031506,2]
[310312678,1704471119503,-500.0,0.00031506,2]
[310312679,1704471119512,-177.81748631,0.00031506,2]
[310312680,1704471119521,-500.0,0.00031506,2]
[310312681,1704471119531,-500.0,0.00031506,2]
[310312682,1704471119540,-500.0,0.00031506,2]
[310312683,1704471119549,-500.0,0.00031506,2]
[310312684,1704471119559,-654.72,0.00031506,2]
[310312685,1704471119568,-500.0,0.00031506,2]
[310312686,1704471119577,-618.30581818,0.00031506,2]
[310312687,1704471119586,-500.0,0.00031506,2]
[310312688,1704471119595,-500.0,0.00031506,2]
[310312689,1704471119604,-529.81,0.00031506,2]
[310312690,1704471119614,-553.69,0.00031506,2]
[310312691,1704471119623,-315.98102401,0.00031506,2]
[310312692,1704471119632,-500.0,0.00031506,2]
[310312693,1704471119641,-500.0,0.00031506,2]
[310312694,1704471119650,-500.0,0.00031506,2]
[310312695,1704471119660,-372.24628744,0.00031506,2]
[310312696,1704471119669,-441.49834946,0.00031506,2]
[310312697,1704471119678,-500.0,0.00031506,2]
[310312698,1704471119687,-500.0,0.00031506,2]
[310312699,1704471119696,-500.0,0.00031506,2]
[310312700,1704471119705,-247.62400883,0.00031506,2]
[310312701,1704471119715,-500.0,0.00031506,2]
[310312702,1704471119724,-500.0,0.00031506,2]
[310312703,1704471119733,-500.0,0.00031506,2]
[310312704,1704471119742,-633.26034676,0.00031506,2]
[310312705,1704471119753,-500.0,0.00031506,2]
[310312706,1704471119762,-990.19,0.00031506,2]
[310312707,1704471119772,-500.0,0.00031506,2]
[310312708,1704471119782,-500.0,0.00031506,2]
[310312709,1704471119794,-536.43884833,0.00031506,2]
[310312710,1704471119803,-500.0,0.00031506,2]
[310312711,1704471119813,-500.0,0.00031506,2]
[310312712,1704471119825,-500.0,0.00031506,2]
[310312713,1704471119834,-500.0,0.00031506,2]
[310312714,1704471119844,-500.0,0.00031506,2]
[310312715,1704471119853,-849.23,0.00031506,2]
[310312716,1704471119862,-500.0,0.00031506,2]
[310312717,1704471119873,-500.0,0.00031506,2]
[310312718,1704471119883,-500.0,0.00031506,2]
[310312719,1704471119892,-600.98009344,0.00031506,2]
[310312720,1704471119901,-500.0,0.00031506,2]
[310312721,1704471119911,-500.0,0.00031506,2]
[310312722,1704471119920,-500.0,0.00031506,2]
[310312723,1704471119929,-500.0,0.00031506,2]
[310312724,1704471119938,-500.0,0.00031506,2]
[310312725,1704471119947,-500.0,0.00031506,2]
[310312726,1704471119956,-581.39,0.00031506,2]
[310312727,1704471119965,-500.0,0.00031506,2]
[310312728,1704471119976,-500.0,0.00031506,2]
[310312729,1704471119985,-500.0,0.00031506,2]
[310312730,1704471119997,-500.0,0.00031506,2]
[310312731,1704471120006,-500.0,0.00031506,2]
[310312732,1704471120015,-500.0,0.00031506,2]
[310312733,1704471120026,-500.0,0.00031506,2]
[310312734,1704471120036,-500.0,0.00031506,2]
[310312735,1704471120046,-500.0,0.00031506,2]
[310312736,1704471120059,-500.0,0.00031506,2]
[310312737,1704471120069,-500.0,0.00031506,2]
[310312738,1704471120078,-500.0,0.00031506,2]
[310312739,1704471120088,-500.0,0.00031506,2]
[310312740,1704471120098,-500.0,0.00031506,2]
[310312741,1704471120107,-500.0,0.00031506,2]
[310312742,1704471120116,-760.0,0.00031506,2]
[310312743,1704471120126,-464.88543649,0.00031506,2]
[310312744,1704471120135,-500.0,0.00031506,2]
[310312745,1704471120144,-500.0,0.00031506,2]
[310312746,1704471120153,-500.0,0.00031506,2]
[310312747,1704471120163,-500.0,0.00031506,2]
[310312748,1704471120172,-500.0,0.00031506,2]
[310312749,1704471120182,-500.0,0.00031506,2]
[310312750,1704471120191,-500.0,0.00031506,2]
[310312751,1704471120201,-500.0,0.00031506,2]
[310312752,1704471120211,-500.0,0.00031506,2]
[310312753,1704471120221,-671.05,0.00031506,2]
[310312754,1704471120231,-500.0,0.00031506,2]
[310312755,1704471120242,-500.0,0.00031506,2]
[310312756,1704471120252,-508.03,0.00031506,2]
[310312757,1704471120261,-225.98810337,0.00031506,2]
[310312758,1704471120270,-500.0,0.00031506,2]
[310312759,1704471120280,-500.0,0.00031506,2]
[310312760,1704471120289,-500.0,0.00031506,2]
[310312761,1704471120298,-500.0,0.00031506,2]
[310312762,1704471120307,-500.0,0.00031506,2]
[310312763,1704471120317,-500.0,0.00031506,2]
[310312764,1704471120327,-500.0,0.00031506,2]
[310312765,1704471120337,-500.0,0.00031506,2]
[310312766,1704471120347,-500.0,0.00031506,2]
[310312767,1704471120356,-500.0,0.00031506,2]
[310312768,1704471120366,-500.0,0.00031506,2]
[310312769,1704471120375,-538.55,0.00031506,2]
[310312770,1704471120385,-979.16,0.00031506,2]
[310312771,1704471120395,-500.0,0.00031506,2]
[310312772,1704471120404,-500.0,0.00031506,2]
[310312773,1704471120414,-500.0,0.00031506,2]
[310312774,1704471120423,-500.0,0.00031506,2]
[310312775,1704471120432,-500.0,0.00031506,2]
[310312776,1704471120444,-500.0,0.00031506,2]
[310312777,1704471120459,-500.0,0.00031506,2]
[310312778,1704471120473,-1145.26,0.00031506,2]
[310312779,1704471120485,-500.0,0.00031506,2]
[310312780,1704471120499,-702.19,0.00031506,2]
[310312781,1704471120513,-500.0,0.00031506,2]
[310312782,1704471120528,-500.0,0.00031506,2]
[310312783,1704471120542,-518.33,0.00031506,2]
[310312784,1704471120556,-500.0,0.00031506,2]
[310312785,1704471120568,-500.0,0.00031506,2]
[310312786,1704471120582,-500.0,0.00031506,2]
[310312787,1704471120595,-500.0,0.00031506,2]
[310312788,1704471120609,-500.0,0.00031506,2]
[310312789,1704471120624,-500.0,0.00031506,2]
[310312790,1704471120635,-500.0,0.00031506,2]
[310312791,1704471120650,-500.0,0.00031506,2]
[310312792,1704471120664,-614.3951149,0.00031506,2]
[310312793,1704471120678,-500.0,0.00031506,2]
[310312794,1704471120691,-500.0,0.00031506,2]
[310312795,1704471120704,-500.0,0.00031506,2]
[310312796,1704471120721,-500.0,0.00031506,2]
[310312797,1704471120737,-501.69,0.00031506,2]
[310312798,1704471120753,-500.0,0.00031506,2]
[310312799,1704471120765,-500.0,0.00031506,2]
[310312800,1704471120776,-500.0,0.00031506,2]
[310312801,1704471120789,-621.07,0.00031506,2]
[310312802,1704471120803,-328.82838409,0.00031506,2]
[310312803,1704471120816,-500.0,0.00031506,2]
[310312804,1704471120831,-500.0,0.00031506,2]
[310312805,1704471120843,-500.0,0.00031506,2]
[310312806,1704471120854,-524.95627085,0.00031506,2]
[310312807,1704471120885,-500.0,0.00031506,2]
[310312808,1704471120899,-631.46271916,0.00031506,2]
[310312809,1704471120911,-500.0,0.00031506,2]
[310312810,1704471120925,-500.0,0.00031506,2]
[310312811,1704471120942,-500.0,0.00031506,2]
[310312812,1704471120957,-608.60767847,0.00031506,2]
[310312813,1704471120977,-1784.64,0.00031506,2]
[310312814,1704471120994,-500.0,0.00031506,2]
[310312815,1704471121012,-500.0,0.00031506,2]
[310312816,1704471121027,-500.0,0.00031506,2]
[310312817,1704471121040,-500.0,0.00031506,2]
[310312818,1704471121055,-219.77806306,0.00031506,2]
[310312819,1704471121068,-500.0,0.00031506,2]
[310312820,1704471121082,-500.0,0.00031506,2]
[310312821,1704471121095,-500.0,0.00031506,2]
[310312822,1704471121108,-500.0,0.00031506,2]
[310312823,1704471121121,-568.13906958,0.00031506,2]
[310312824,1704471121134,-1054.73,0.00031506,2]
[310312825,1704471121147,-251.00092434,0.00031506,2]
[310312826,1704471121160,-232.20662438,0.00031506,2]
[310312827,1704471121173,-710.67,0.00031506,2]
[310312828,1704471121186,-500.0,0.00031506,2]
[310312829,1704471121200,-500.0,0.00031506,2]
[310312830,1704471121213,-500.0,0.00031506,2]
[310312831,1704471121229,-500.0,0.00031506,2]
[310312832,1704471121243,-500.0,0.00031506,2]
[310312833,1704471121257,-181.2184639,0.00031506,2]
[310312834,1704471121270,-1300.33,0.00031506,2]
[310312835,1704471121283,-500.0,0.00031506,2]
[310312836,1704471121295,-500.0,0.00031506,2]
[310312837,1704471121309,-576.89,0.00031506,2]
[310312838,1704471121323,-500.0,0.00031506,2]
[310312839,1704471121336,-500.0,0.00031506,2]
[310312840,1704471121351,-500.0,0.00031506,2]
[310312841,1704471121369,-500.0,0.00031506,2]
[310312842,1704471121382,-500.0,0.00031506,2]
[310312843,1704471121397,-500.0,0.00031506,2]
[310312844,1704471121411,-500.0,0.00031506,2]
[310312845,1704471121424,-500.0,0.00031506,2]
[310312846,1704471121437,-500.0,0.00031506,2]
[310312847,1704471121450,-500.0,0.00031506,2]
[310312848,1704471121463,-1069.2,0.00031506,2]
[310312849,1704471121478,-500.0,0.00031506,2]
[310312850,1704471121492,-500.0,0.00031506,2]
[310312851,1704471121506,-500.0,0.00031506,2]
[310312852,1704471121519,-500.0,0.00031506,2]
[310312853,1704471121532,-500.0,0.00031506,2]
[310312854,1704471121546,-500.0,0.00031506,2]
[310312855,1704471121559,-500.0,0.00031506,2]
[310312856,1704471121574,-625.92,0.00031506,2]
[310312857,1704471121589,-704.44,0.00031506,2]
[310312858,1704471121602,-500.0,0.00031506,2]
[310312859,1704471121615,-587.12,0.00031506,2]
[310312860,1704471121627,-500.0,0.00031506,2]
[310312861,1704471121641,-500.0,0.00031506,2]
[310312862,1704471121653,-500.0,0.00031506,2]
[310312863,1704471121666,-500.0,0.00031506,2]
[310312864,1704471121677,-942.24,0.00031506,2]
[310312865,1704471121690,-500.0,0.00031506,2]
[310312866,1704471121702,-500.0,0.00031506,2]
[310312867,1704471121715,-500.0,0.00031506,2]
[310312868,1704471121727,-157.66396694,0.00031506,2]
[310312869,1704471121740,-500.0,0.00031506,2]
[310312870,1704471121753,-500.0,0.00031506,2]
[310312871,1704471121765,-500.0,0.00031506,2]
[310312872,1704471121780,-500.0,0.00031506,2]
[310312873,1704471121792,-500.0,0.00031506,2]
[310312874,1704471121804,-500.0,0.00031506,2]
[310312875,1704471121818,-1261.61,0.00031506,2]
[310312876,1704471121830,-266.99595664,0.00031506,2]
[310312877,1704471121843,-1117.05,0.00031506,2]
[310312878,1704471121856,-500.0,0.00031506,2]
[310312879,1704471121869,-500.0,0.00031506,2]
[310312880,1704471121881,-500.0,0.00031506,2]
[310312881,1704471121893,-500.0,0.00031506,2]
[310312882,1704471121904,-565.76,0.00031506,2]
[310312883,1704471121916,-500.0,0.00031506,2]
[310312884,1704471121928,-925.99,0.00031506,2]
[310312885,1704471121939,-500.0,0.00031506,2]
[310312886,1704471121952,-500.0,0.00031506,2]
[310312887,1704471121964,-688.58,0.00031506,2]
[310312888,1704471121977,-424.99614315,0.00031506,2]
[310312889,1704471121989,-500.0,0.00031506,2]
[310312890,1704471122001,-500.0,0.00031506,2]
[310312891,1704471122013,-585.74823297,0.00031506,2]
[310312892,1704471122025,-858.46,0.00031506,2]
[310312893,1704471122037,-500.0,0.00031506,2]
[310312894,1704471122049,-500.0,0.00031506,2]
[310312895,1704471122062,-500.0,0.00031506,2]
[310312896,1704471122074,-500.0,0.00031506,2]
[310312897,1704471122085,-500.0,0.00031506,2]
[310312898,1704471122098,-500.0,0.00031506,2]
[310312899,1704471122110,-465.44324349,0.00031506,2]
[310312900,1704471122122,-500.0,0.00031506,2]
[310312901,1704471122134,-500.0,0.00031506,2]
[310312902,1704471122146,-500.0,0.00031506,2]
[310312903,1704471122158,-500.0,0.00031506,2]
[310312904,1704471122171,-1444.56,0.00031506,2]
[310312905,1704471122183,-500.0,0.00031506,2]
[310312906,1704471122196,-500.0,0.00031506,2]
[310312907,1704471122208,-500.0,0.00031506,2]
[310312908,1704471122220,-500.0,0.00031506,2]
[310312909,1704471122233,-444.154656,0.00031506,2]
[310312910,1704471122245,-159.4407462,0.00031506,2]
[310312911,1704471122258,-500.0,0.00031506,2]
[310312912,1704471122269,-563.9,0.00031506,2]
[310312913,1704471122281,-500.0,0.00031506,2]
[310312914,1704471122293,-500.0,0.00031506,2]
[310312915,1704471122305,-500.0,0.00031506,2]
[310312916,1704471122317,-500.0,0.00031506,2]
[310312917,1704471122329,-500.0,0.00031506,2]
[310312918,1704471122342,-500.0,0.00031506,2]
[310312919,1704471122353,-709.45,0.00031506,2]
[310312920,1704471122366,-500.0,0.00031506,2]
[310312921,1704471122378,-500.0,0.00031506,2]
[310312922,1704471122390,-500.0,0.00031506,2]
[310312923,1704471122401,-500.0,0.00031506,2]
[310312924,1704471122414,-520.35,0.00031506,2]
[310312925,1704471122425,-855.3,0.00031506,2]
[310312926,1704471122437,-500.0,0.00031506,2]
[310312927,1704471122449,-500.0,0.00031506,2]
[310312928,1704471122461,-500.0,0.00031506,2]
[310312929,1704471122472,-1959.68,0.00031506,2]
[310312930,1704471122484,-500.0,0.00031506,2]
[310312931,1704471122495,-610.92,0.00031506,2]
[310312932,1704471122508,-500.0,0.00031506,2]
[310312933,1704471122520,-617.83,0.00031506,2]
[310312934,1704471122532,-1510.28,0.00031506,2]
[310312935,1704471122544,-500.0,0.00031506,2]
[310312936,1704471122555,-500.0,0.00031506,2]
[310312937,1704471122567,-500.0,0.00031506,2]
[310312938,1704471122578,-500.0,0.00031506,2]
[310312939,1704471122591,-214.53437676,0.00031506,2]
[310312940,1704471122602,-540.96,0.00031506,2]
[310312941,1704471122613,-618.06,0.00031506,2]
[310312942,1704471122625,-500.0,0.00031506,2]
[310312943,1704471122636,-500.0,0.00031506,2]
[310312944,1704471122648,-500.0,0.00031506,2]
[310312945,1704471122660,-1094.64,0.00031506,2]
[310312946,1704471122672,-500.0,0.00031506,2]
[310312947,1704471122684,-500.0,0.00031506,2]
[310312948,1704471122696,-500.0,0.00031506,2]
[310312949,1704471122707,-500.0,0.00031506,2]
[310312950,1704471122718,-656.56,0.00031506,2]
[310312951,1704471122730,-500.0,0.00031506,2]
[310312952,1704471122742,-500.0,0.00031506,2]
[310312953,1704471122754,-1053.74,0.00031506,2]
[310312954,1704471122766,-500.0,0.00031506,2]
[310312955,1704471122778,-500.0,0.00031506,2]
[310312956,1704471122790,-620.09362618,0.00031506,2]
[310312957,1704471122802,-500.0,0.00031506,2]
[310312958,1704471122814,-518.4939005,0.00031506,2]
[310312959,1704471122825,-1104.35,0.00031506,2]
[310312960,1704471122837,-994.79,0.00031506,2]
[310312961,1704471122849,-500.0,0.00031506,2]
[310312962,1704471122862,-500.0,0.00031506,2]
[310312963,1704471122873,-542.03797839,0.00031506,2]
[310312964,1704471122885,-500.0,0.00031506,2]
[310312965,1704471122896,-506.93,0.00031506,2]
[310312966,1704471122907,-500.0,0.00031506,2]
[310312967,1704471122918,-500.0,0.00031506,2]
[310312968,1704471122930,-976.12,0.00031506,2]
[310312969,1704471122942,-500.0,0.00031506,2]
[310312970,1704471122954,-500.0,0.00031506,2]
[310312971,1704471122965,-500.0,0.00031506,2]
[310312972,1704471122977,-514.26,0.00031506,2]
[310312973,1704471122988,-536.40277172,0.00031506,2]
[310312974,1704471122999,-572.06,0.00031506,2]
[310312975,1704471123012,-737.83,0.00031506,2]
[310312976,1704471123023,-1754.66,0.00031506,2]
[310312977,1704471123035,-500.0,0.00031506,2]
[310312978,1704471123047,-500.0,0.00031506,2]
[310312979,1704471123059,-431.64748552,0.00031506,2]
[310312980,1704471123071,-647.46,0.00031506,2]
[310312981,1704471123082,-500.0,0.00031506,2]
[310312982,1704471123093,-513.45162827,0.00031506,2]
[310312983,1704471123105,-500.0,0.00031506,2]
[310312984,1704471123117,-500.0,0.00031506,2]
[310312985,1704471123128,-614.06,0.00031506,2]
[310312986,1704471123140,-500.0,0.00031506,2]
[310312987,1704471123151,-500.0,0.00031506,2]
[310312988,1704471123163,-500.0,0.00031506,2]
[310312989,1704471123174,-500.0,0.00031506,2]
[310312990,1704471123186,-762.69,0.00031506,2]
[310312991,1704471123198,-500.0,0.00031506,2]
[310312992,1704471123209,-672.73,0.00031506,2]
[310312993,1704471123220,-500.0,0.00031506,2]
[310312994,1704471123232,-500.0,0.00031506,2]
[310312995,1704471123243,-500.0,0.00031506,2]
[310312996,1704471123256,-500.0,0.00031506,2]
[310312997,1704471123267,-500.0,0.00031506,2]
[310312998,1704471123279,-553.22,0.00031506,2]
[310312999,1704471123291,-500.0,0.00031506,2]
[310313000,1704471123302,-1134.29,0.00031506,2]
[310313001,1704471123313,-403.91692149,0.00031506,2]
[310313002,1704471123324,-539.04,0.00031506,2]
[310313003,1704471123336,-500.0,0.00031506,2]
[310313004,1704471123347,-500.0,0.00031506,2]
[310313005,1704471123358,-215.7461745,0.00031506,2]
[310313006,1704471123370,-1649.86,0.00031506,2]
[310313007,1704471123382,-500.0,0.00031506,2]
[310313008,1704471123393,-500.0,0.00031506,2]
[310313009,1704471123404,-835.39,0.00031506,2]
[310313010,1704471123415,-500.0,0.00031506,2]
[310313011,1704471123427,-1069.61,0.00031506,2]
[310313012,1704471123439,-500.0,0.00031506,2]
[310313013,1704471123450,-536.06,0.00031506,2]
[310313014,1704471123461,-500.0,0.00031506,2]
[310313015,1704471123473,-628.4,0.00031506,2]
[310313016,1704471123484,-482.61056223,0.00031506,2]
[310313017,1704471123496,-310.20867805,0.00031506,2]
[310313018,1704471123508,-555.52,0.00031506,2]
[310313019,1704471123520,-500.0,0.00031506,2]
[310313020,1704471123531,-1238.6,0.00031506,2]
[310313021,1704471123542,-500.0,0.00031506,2]
[310313022,1704471123554,-500.0,0.00031506,2]
[310313023,1704471123566,-500.0,0.00031506,2]
[310313024,1704471123577,-1117.69,0.00031506,2]
[310313025,1704471123588,-500.0,0.00031506,2]
[310313026,1704471123600,-500.0,0.00031506,2]
[310313027,1704471123611,-500.0,0.00031506,2]
[310313028,1704471123629,-1268.87,0.00031506,2]
[310313029,1704471123640,-778.95,0.00031506,2]
[310313030,1704471123649,-500.0,0.00031506,2]
[310313031,1704471123661,-500.0,0.00031506,2]
[310313032,1704471123672,-500.0,0.00031506,2]
[310313033,1704471123683,-500.0,0.00031506,2]
[310313034,1704471123694,-500.0,0.00031506,2]
[310313035,1704471123705,-500.0,0.00031506,2]
[310313036,1704471123717,-500.0,0.00031506,2]
[310313037,1704471123729,-500.0,0.00031506,2]
[310313038,1704471123740,-500.16,0.00031506,2]
[310313039,1704471123752,-500.0,0.00031506,2]
[310313040,1704471123763,-500.0,0.00031506,2]
[310313041,1704471123776,-500.0,0.00031506,2]
[310313042,1704471123788,-500.0,0.00031506,2]
[310313043,1704471123799,-576.0,0.00031506,2]
[310313044,1704471123810,-1162.79,0.00031506,2]
[310313045,1704471123822,-500.0,0.00031506,2]
[310313046,1704471123833,-500.0,0.00031506,2]
[310313047,1704471123844,-500.0,0.00031506,2]
[310313048,1704471123856,-500.0,0.00031506,2]
[310313049,1704471123868,-500.0,0.00031506,2]
[310313050,1704471123880,-500.0,0.00031506,2]
[310313051,1704471123890,-774.96,0.00031506,2]
[310313052,1704471123903,-500.0,0.00031506,2]
[310313053,1704471123914,-500.0,0.00031506,2]
[310313054,1704471123925,-822.37,0.00031506,2]
[310313055,1704471124465,-500.0,0.00031506,2]
[310313056,1704471124490,-539.90721405,0.00031506,2]
[310313057,1704471124500,-500.0,0.00031506,2]
[310313058,1704471124510,-500.0,0.00031506,2]
[310313059,1704471124520,-500.0,0.00031506,2]
[310313060,1704471124530,-500.0,0.00031506,2]
[310313061,1704471124539,-541.67,0.00031506,2]
[310313062,1704471124548,-500.0,0.00031506,2]
[310313063,1704471124557,-500.0,0.00031506,2]
[310313064,1704471124566,-500.0,0.00031506,2]
[310313065,1704471124576,-500.0,0.00031506,2]
[310313066,1704471124586,-500.0,0.00031506,2]
[310313067,1704471124595,-1372.88,0.00031506,2]
[310313068,1704471124605,-753.94,0.00031506,2]
[310313069,1704471124614,-500.0,0.00031506,2]
[310313070,1704471124624,-500.0,0.00031506,2]
[310313071,1704471124633,-653.2,0.00031506,2]
[310313072,1704471124642,-500.0,0.00031506,2]
[310313073,1704471124652,-515.93,0.00031506,2]
[310313074,1704471124662,-500.0,0.00031506,2]
[310313075,1704471124671,-500.0,0.00031506,2]
[310313076,1704471124681,-500.0,0.00031506,2]
[310313077,1704471124691,-1253.1,0.00031506,2]
[310313078,1704471124700,-581.972308,0.00031506,2]
[310313079,1704471124710,-500.0,0.00031506,2]
[310313080,1704471124721,-727.02,0.00031506,2]
[310313081,1704471124730,-500.0,0.00031506,2]
[310313082,1704471124739,-1238.19,0.00031506,2]
[310313083,1704471124749,-500.0,0.00031506,2]
[310313084,1704471124759,-500.0,0.00031506,2]
[310313085,1704471124768,-772.08,0.00031506,2]
[310313086,1704471124777,-500.0,0.00031506,2]
[310313087,1704471124787,-500.0,0.00031506,2]
[310313088,1704471124796,-440.93506187,0.00031506,2]
[310313089,1704471124806,-500.0,0.00031506,2]
[310313090,1704471124815,-695.57,0.00031506,2]
[310313091,1704471124824,-500.0,0.00031506,2]
[310313092,1704471124834,-947.64,0.00031506,2]
[310313093,1704471124843,-500.0,0.00031506,2]
[310313094,1704471124852,-500.0,0.00031506,2]
[310313095,1704471124861,-644.36,0.00031506,2]
[310313096,1704471124871,-662.68,0.00031506,2]
[310313097,1704471124881,-500.0,0.00031506,2]
[310313098,1704471124890,-472.24,0.00031506,2]
[310313099,1704471124899,-1000.0,0.00031506,2]
[310313100,1704471124908,-500.0,0.00031506,2]
[310313101,1704471124918,-500.0,0.00031506,2]
[310313102,1704471124927,-500.0,0.00031506,2]
[310313103,1704471124937,-500.0,0.00031506,2]
[310313104,1704471124947,-500.0,0.00031506,2]
[310313105,1704471124956,-500.0,0.00031506,2]
[310313106,1704471124966,-500.0,0.00031506,2]
[310313107,1704471124976,-500.0,0.00031506,2]
[310313108,1704471124986,-606.21,0.00031506,2]
[310313109,1704471124996,-500.0,0.00031506,2]
[310313110,1704471125005,-1236.18,0.00031506,2]
[310313111,1704471125015,-500.0,0.00031506,2]
[310313112,1704471125025,-500.0,0.00031506,2]
[310313113,1704471125035,-500.0,0.00031506,2]
[310313114,1704471125045,-500.0,0.00031506,2]
[310313115,1704471125056,-500.0,0.00031506,2]
[310313116,1704471125067,-500.0,0.00031506,2]
[310313117,1704471125077,-947.15,0.00031506,2]
[310313118,1704471125087,-500.0,0.00031506,2]
[310313119,1704471125098,-500.0,0.00031506,2]
[310313120,1704471125107,-500.0,0.00031506,2]
[310313121,1704471125117,-500.0,0.00031506,2]
[310313122,1704471125128,-500.0,0.00031506,2]
[310313123,1704471125137,-500.0,0.00031506,2]
[310313124,1704471125147,-500.59,0.00031506,2]